bitfinex-derivatives/quotes_ETHF0:USTF0_20250421
["timestamp","ask_amount","ask_price","bid_price","bid_amount"]
[1745203995498,9.28533,1633.8,1633.7,1.23350822]
[1745203996601,1.22431,1633.7,1633.6,3.2078]
[1745203996809,4.00301,1633.7,1633.6,3.2078]
[1745203997108,6.26701,1633.7,1633.6,3.2078]
[1745203999812,12.25101,1633.7,1633.6,3.2078]
[1745204002511,1.22455,1633.4,1633.2,1.22463]
[1745204002708,5.6147,1633.3,1633.2,3.98853]
[1745204003107,7.8787,1633.3,1633.2,3.98853]
[1745204006607,7.8787,1633.3,1633.2,2.7639]
[1745204006808,1.22468,1633.2,1633.1,3.21699822]
[1745204007011,4.07308,1633.2,1633.1,0.00919822]
[1745204007208,5.1124,1633.2,1633.1,1.23395822]
[1745204007715,5.1124,1633.2,1633.1,3.89785822]
[1745204009318,6.33708,1633.2,1633.1,2.67309822]
[1745204009618,5.1124,1633.2,1633.1,3.89785822]
[1745204010721,6.33708,1633.2,1633.1,2.67309822]
[1745204011317,5.1124,1633.2,1633.1,3.89785822]
[1745204011718,2.264,1633.2,1633.1,3.89785822]
[1745204012219,3.48868,1633.2,1633.1,2.67309822]
[1745204012419,6.17888,1633.2,1633.1,2.67309822]
[1745204012612,4.9542,1633.2,1633.1,2.67309822]
[1745204012811,6.17888,1633.2,1633.1,2.67309822]
[1745204013318,4.9542,1633.2,1633.1,3.89785822]
[1745204013616,4.9542,1633.2,1633.1,2.67309822]
[1745204014119,6.17888,1633.2,1633.1,0.00919822]
[1745204016716,4.9542,1633.2,1633.1,1.23395822]
[1745204016923,4.9542,1633.2,1633.1,4.01325822]
[1745204017311,2.264,1633.2,1633.1,4.01325822]
[1745204019321,5.159,1633.2,1633.1,4.01325822]
[1745204019524,6.38368,1633.2,1633.1,2.78849822]
[1745204020126,6.38368,1633.2,1633.1,4.01325822]
[1745204020725,6.38368,1633.2,1633.1,2.78849822]
[1745204021119,6.38368,1633.2,1633.1,0.00919822]
[1745204025328,5.159,1633.2,1633.1,0.00919822]
[1745204025530,5.159,1633.2,1633.1,1.23395822]
[1745204026430,6.38368,1633.2,1633.1,4.07285822]
[1745204029525,2.264,1633.2,1633.1,4.07285822]
[1745204030821,4.9324,1633.2,1633.1,4.07285822]
[1745204031629,4.9324,1633.2,1633.1,1.23395822]
[1745204031832,6.15708,1633.2,1633.1,0.00919822]
[1745204032027,6.15708,1633.2,1633.1,1.23395822]
[1745204032229,6.15708,1633.2,1633.1,0.00919822]
[1745204032631,4.9324,1633.2,1633.1,0.00919822]
[1745204032927,6.15708,1633.2,1633.1,3.88375822]
[1745204033128,4.9324,1633.2,1633.1,3.88375822]
[1745204033626,6.15708,1633.2,1633.1,2.65899822]
[1745204034324,6.15708,1633.2,1633.1,3.88375822]
[1745204035329,6.15708,1633.2,1633.1,0.00919822]
[1745204036526,6.15708,1633.2,1632.8,6.0301]
[1745204036527,14.1242,1633.2,1632.8,6.0301]
[1745204036733,1.22488,1633.0,1632.8,7.25505]
[1745204036927,5.5309,1632.9,1632.8,7.25505]
[1745204037234,8.3036,1632.9,1632.8,7.25505]
[1745204038430,9.52851,1632.9,1632.8,7.25505]
[1745204038623,9.52851,1632.9,1632.8,4.04725]
[1745204038819,1.22498,1632.8,1632.7,0.00919822]
[1745204039019,4.10508,1632.8,1632.7,0.00919822]
[1745204039227,6.36908,1632.8,1632.7,0.00919822]
[1745204041241,4.10508,1632.8,1632.7,0.00919822]
[1745204041929,4.10508,1632.8,1632.7,1.23425822]
[1745204042130,5.5488,1632.9,1632.8,1.22498]
[1745204042330,2.7761,1632.9,1632.8,1.22498]
[1745204042530,2.7761,1632.9,1632.8,4.43278]
[1745204042836,6.87267224,1633.1,1632.8,3.2078]
[1745204043136,9.04937224,1633.1,1633.0,1.22483]
[1745204043336,6.29707224,1633.1,1633.0,4.43263]
[1745204043836,6.29707224,1633.1,1633.0,4.00003]
[1745204044235,6.29707224,1633.1,1633.0,7.20783]
[1745204045438,2.264,1633.1,1633.0,7.20783]
[1745204049143,2.264,1633.1,1633.0,5.983]
[1745204049342,2.264,1633.1,1633.0,7.20783]
[1745204049948,5.1723,1633.1,1633.0,7.20783]
[1745204050845,2.264,1633.1,1633.0,7.20783]
[1745204052748,5.0245,1633.1,1633.0,7.20783]
[1745204054350,2.264,1633.1,1633.0,7.20783]
[1745204068168,2.264,1633.1,1633.0,4.00003]
[1745204068461,2.264,1633.1,1633.0,7.20783]
[1745204069772,2.264,1633.1,1633.0,4.00003]
[1745204069973,2.264,1633.1,1633.0,7.20783]
[1745204070273,0.31721758,1633.4,1633.3,1.22461]
[1745204070568,7.58e-06,1633.4,1633.3,9.37341]
[1745204070966,7.58e-06,1633.4,1633.3,11.71521]
[1745204071164,7.58e-06,1633.4,1633.3,16.71521]
[1745204071473,1.68705416,1633.5,1633.4,1.22453]
[1745204071671,4.22359448,1633.6,1633.5,1.22446]
[1745204071872,4.22359448,1633.6,1633.5,5.33956]
[1745204072069,1.58109448,1633.6,1633.5,12.67636]
[1745204072373,4.48e-06,1633.6,1633.5,12.67636]
[1745204072872,8.91306288,1633.7,1633.6,1.22438]
[1745204073070,7.51922288,1633.7,1633.6,8.49118]
[1745204073269,6.21511288,1633.7,1633.6,13.49118]
[1745204073464,9.73e-06,1633.7,1633.6,13.49118]
[1745204074062,12.21386421,1634.0,1633.9,1.22416]
[1745204074371,12.21386421,1634.0,1633.9,9.82863369]
[1745204074572,4.7478,1634.2,1634.1,1.22401]
[1745204074774,4.7478,1634.2,1634.1,4.43181]
[1745204075375,7.0118,1634.2,1634.1,4.43181]
[1745204075866,4.5644,1634.2,1634.1,4.43181]
[1745204076073,2.264,1634.2,1634.1,4.43181]
[1745204076663,4.5158,1634.2,1634.1,4.43181]
[1745204077774,9.249,1634.2,1634.1,4.43181]
[1745204080476,9.249,1634.2,1634.1,3.2078]
[1745204080672,9.249,1634.2,1634.1,4.43181]
[1745204083679,2.264,1634.2,1634.1,4.43181]
[1745204084179,4.6572,1634.2,1634.1,4.43181]
[1745204084382,6.9237,1634.2,1634.1,4.43181]
[1745204085281,2.264,1634.2,1634.1,9.43181]
[1745204085979,2.264,1634.2,1634.1,6.88691]
[1745204086179,7.089,1634.2,1634.1,6.88691]
[1745204086383,7.089,1634.2,1634.1,11.81391]
[1745204086689,7.089,1634.2,1634.1,4.43181]
[1745204087277,7.089,1634.2,1634.1,3.2078]
[1745204087781,7.089,1634.2,1634.1,4.43181]
[1745204091086,7.089,1634.2,1634.1,1.22401]
[1745204091684,7.089,1634.2,1634.0,3.21699822]
[1745204091886,4.9017,1634.1,1634.0,3.21699822]
[1745204092187,7.1657,1634.1,1634.0,3.21699822]
[1745204092888,1.22409,1634.0,1633.7,6.15125]
[1745204093081,5.5692,1633.9,1633.8,1.22423]
[1745204093582,7.8353,1633.9,1633.8,1.22423]
[1745204094082,6.8915,1633.9,1633.8,1.22423]
[1745204094288,6.8915,1633.9,1633.8,4.43203]
[1745204094482,6.8915,1633.9,1633.8,6.89863]
[1745204094683,6.8915,1633.9,1633.8,4.43203]
[1745204095383,6.8915,1633.9,1633.8,1.22423]
[1745204095593,6.8915,1633.9,1633.8,4.43203]
[1745204096581,6.8915,1633.9,1633.8,6.82633]
[1745204098591,6.8915,1633.9,1633.8,1.22423]
[1745204099294,6.8915,1633.9,1633.8,4.43203]
[1745204099792,6.8915,1633.9,1633.8,1.22423]
[1745204104991,6.8915,1633.9,1633.7,4.44124822]
[1745204105189,2.2788,1633.8,1633.7,1.23344822]
[1745204105791,2.2788,1633.8,1633.7,4.44124822]
[1745204105998,4.6254,1633.9,1633.8,1.22423]
[1745204106192,2.3614,1633.9,1633.8,3.58983]
[1745204106595,2.2788,1634.0,1633.9,1.22416]
[1745204106791,2.2788,1634.0,1633.9,9.34696]
[1745204107193,4.5428,1634.0,1633.9,9.34696]
[1745204111002,2.264,1634.0,1633.9,9.34696]
[1745204112904,2.4624,1634.1,1634.0,1.22408]
[1745204113104,2.39079822,1634.3,1634.2,1.22393]
[1745204113500,18.50529979,1634.8,1634.5,1.22371]
[1745204113804,2.3583,1634.7,1634.6,1.22363]
[1745204114223,9.6223,1634.7,1634.6,1.22363]
[1745204114545,9.6223,1634.7,1634.3,3.05963]
[1745204114546,9.6223,1634.7,1634.5,1.22365]
[1745204114829,4.6223,1634.7,1634.5,1.23284822]
[1745204115026,4.7213,1634.6,1634.5,1.23284822]
[1745204115233,6.9853,1634.6,1634.5,1.23284822]
[1745204115532,6.9853,1634.6,1634.5,0.00919822]
[1745204115709,11.41673,1634.6,1634.5,0.00919822]
[1745204115915,15.1931,1634.6,1634.5,0.00919822]
[1745204116615,16.41673,1634.6,1634.5,0.00919822]
[1745204116911,15.1931,1634.6,1634.5,0.00919822]
[1745204117104,11.9853,1634.6,1634.5,1.23290822]
[1745204117502,6.9853,1634.6,1634.5,1.23290822]
[1745204119508,6.9853,1634.6,1634.5,3.59430822]
[1745204123715,6.9853,1634.6,1634.5,8.50830822]
[1745204124606,4.6439,1634.6,1634.5,8.50830822]
[1745204127218,2.264,1634.6,1634.5,8.50830822]
[1745204129122,1.3202,1634.6,1634.5,8.50830822]
[1745204133922,1.3202,1634.6,1634.5,11.71610822]
[1745204134118,3.6172,1634.6,1634.5,9.35470822]
[1745204138127,3.6316,1634.6,1634.5,9.35470822]
[1745204139624,1.3346,1634.6,1634.5,9.35470822]
[1745204140429,3.7199,1634.6,1634.5,9.35470822]
[1745204141924,3.7199,1634.6,1634.5,3.21699822]
[1745204142124,8.7199,1634.6,1634.2,1.2239]
[1745204142319,2.4473,1634.5,1634.3,1.22386]
[1745204143026,4.43164,1634.4,1634.0,23.62444675]
[1745204143326,2.4473,1634.3,1634.1,1.22399]
[1745204143526,4.9142,1634.3,1634.1,1.22399]
[1745204143714,2.4473,1634.2,1634.1,1.22399]
[1745204144128,4.7113,1634.2,1634.1,1.22399]
[1745204145327,7.1377,1634.2,1634.1,1.22399]
[1745204149132,1.22401,1634.1,1634.0,3.21699822]
[1745204149338,3.06022,1634.0,1633.4,12.23600337]
[1745204149544,4.43218,1633.6,1633.5,4.46854338]
[1745204150041,9.43218,1633.6,1633.5,4.46854338]
[1745204150237,11.69618,1633.6,1633.5,4.46854338]
[1745204150438,6.69618,1633.6,1633.5,4.46854338]
[1745204151243,5.4718,1633.6,1633.5,5.69300338]
[1745204151638,5.4718,1633.6,1633.5,4.46854338]
[1745204152142,7.7205,1633.6,1633.5,4.46854338]
[1745204152445,10.027,1633.6,1633.5,5.69300338]
[1745204152836,12.4163,1633.6,1633.5,1.22446]
[1745204153342,9.2085,1633.6,1633.5,1.22446]
[1745204153745,9.2229,1633.6,1633.5,1.22446]
[1745204155945,9.2229,1633.6,1633.5,3.46996]
[1745204156243,9.2229,1633.6,1633.5,8.37196]
[1745204156946,9.2229,1633.6,1633.5,6.12646]
[1745204160454,9.2229,1633.6,1633.5,8.37336]
[1745204162554,2.2784,1633.6,1633.5,8.37336]
[1745204163451,6.9582,1633.6,1633.5,6.12646]
[1745204163844,6.9582,1633.6,1633.4,4.44148822]
[1745204164044,4.6373,1633.5,1633.4,4.44148822]
[1745204165155,6.9013,1633.5,1633.4,4.44148822]
[1745204169158,2.264,1633.5,1633.4,6.78458822]
[1745204169461,2.264,1633.5,1633.4,9.24438822]
[1745204169663,2.264,1633.5,1633.4,4.44148822]
[1745204169958,4.652,1633.5,1633.4,4.44148822]
[1745204171959,4.652,1633.5,1633.4,1.23368822]
[1745204172260,4.652,1633.5,1633.4,4.44148822]
[1745204173159,4.652,1633.5,1633.4,6.86248822]
[1745204173660,4.652,1633.5,1633.4,4.44148822]
[1745204174556,4.652,1633.5,1633.4,6.86248822]
[1745204175159,4.652,1633.5,1633.4,3.65468822]
[1745204175458,4.652,1633.5,1633.4,6.86248822]
[1745204175760,2.264,1633.5,1633.4,6.86248822]
[1745204176460,2.264,1633.5,1633.4,3.65468822]
[1745204176762,2.264,1633.5,1633.4,1.23368822]
[1745204177859,4.6075,1633.5,1633.4,1.23368822]
[1745204181564,4.6075,1633.5,1633.4,3.54208822]
[1745204183360,4.6075,1633.5,1633.4,1.23368822]
[1745204187067,5.83196,1633.5,1633.4,0.00919822]
[1745204187270,9.03976,1633.5,1633.4,0.00919822]
[1745204189372,9.03976,1633.5,1633.4,1.23372822]
[1745204191475,9.03976,1633.5,1633.4,0.00919822]
[1745204192378,9.03976,1633.5,1632.8,5.07263]
[1745204192379,1.22472,1633.2,1632.8,5.07263]
[1745204192575,2.2556,1633.1,1633.0,1.22483]
[1745204192775,6.9109,1633.1,1633.0,1.22483]
[1745204193262,9.1749,1633.1,1633.0,1.22483]
[1745204195474,10.39966,1633.1,1633.0,1.22483]
[1745204195675,10.39966,1633.1,1632.9,3.54583822]
[1745204195873,8.07726,1633.1,1633.0,1.22483]
[1745204196373,6.8525,1633.1,1633.0,1.22483]
[1745204197376,8.07726,1633.1,1633.0,1.22483]
[1745204198177,8.07726,1633.1,1632.9,1.23404822]
[1745204199577,8.07726,1633.1,1632.9,1.23403822]
[1745204199776,8.07726,1633.1,1632.9,0.00919822]
[1745204200371,6.8525,1633.1,1633.0,1.22483]
[1745204200877,6.8525,1633.1,1633.0,3.57103]
[1745204201871,6.8525,1633.1,1633.0,1.22483]
[1745204203481,8.07726,1633.1,1632.9,1.23405822]
[1745204203780,6.8525,1633.1,1633.0,1.22483]
[1745204204679,6.8525,1633.1,1632.9,0.00919822]
[1745204204979,4.43263,1633.0,1632.9,0.00919822]
[1745204205179,6.69663,1633.0,1632.9,0.00919822]
[1745204205580,6.69663,1633.0,1632.9,1.23410822]
[1745204205581,5.4718,1633.0,1632.9,1.23410822]
[1745204207784,2.264,1633.0,1632.9,1.23410822]
[1745204213088,4.7526,1633.0,1632.9,1.23410822]
[1745204213383,7.9604,1633.0,1632.9,1.23410822]
[1745204215284,9.18523,1633.0,1632.9,0.00919822]
[1745204217086,13.9444,1633.0,1632.5,4.879]
[1745204217286,3.50886,1632.9,1632.7,1.22505]
[1745204217487,5.83358,1632.8,1632.6,2.4153]
[1745204217686,4.6705,1632.7,1632.6,3.64043]
[1745204217886,4.6705,1632.7,1632.6,3.63346485]
[1745204218484,0.00919822,1632.8,1632.7,1.22506]
[1745204218785,0.00223307,1632.8,1632.7,5.92516]
[1745204218986,0.00223307,1632.8,1632.7,3.66916]
[1745204220175,0.00223307,1632.8,1632.7,1.22506]
[1745204220583,0.00223307,1632.8,1632.7,4.43286]
[1745204220983,0.00223307,1632.8,1632.7,6.71636]
[1745204221883,0.00223307,1632.8,1632.7,3.50856]
[1745204223191,2.26623307,1632.8,1632.7,3.50856]
[1745204224890,2.26623307,1632.8,1632.7,8.50856]
[1745204225192,2.24782841,1632.8,1632.7,14.39256]
[1745204225392,6.08524948,1633.2,1633.1,1.22476]
[1745204225592,6.08524948,1633.2,1633.1,6.08976]
[1745204225994,6.08524948,1633.2,1633.1,8.53646]
[1745204226296,8.34924948,1633.2,1633.1,8.53646]
[1745204228797,2.264,1633.2,1633.1,8.53646]
[1745204230297,2.264,1633.2,1633.1,7.3117]
[1745204230498,9.6368,1633.2,1633.1,1.22476]
[1745204231195,9.6368,1633.2,1633.1,4.43256]
[1745204231491,9.6368,1633.2,1633.1,6.76796]
[1745204231995,9.6368,1633.2,1633.1,3.56016]
[1745204234290,2.264,1633.2,1633.1,3.56016]
[1745204234490,2.264,1633.2,1633.1,8.27806]
[1745204235197,2.264,1633.2,1633.1,1.22476]
[1745204235400,9.3376,1633.2,1633.1,3.69296]
[1745204243203,9.3376,1633.2,1633.0,9.29661]
[1745204243402,2.5267,1633.1,1632.8,8.0718]
[1745204243701,2.5267,1633.1,1633.0,1.22483]
[1745204244100,4.7907,1633.1,1633.0,1.22483]
[1745204244593,4.7907,1633.1,1632.9,1.22486]
[1745204244903,2.5267,1633.0,1632.9,1.22486]
[1745204245703,2.5267,1633.0,1632.8,4.43273]
[1745204245904,4.8497,1632.9,1632.8,4.43273]
[1745204246107,7.1137,1632.9,1632.8,4.43273]
[1745204250210,7.1137,1632.9,1632.8,6.87103]
[1745204250402,2.264,1632.9,1632.8,6.87103]
[1745204250603,2.264,1632.9,1632.8,16.46373]
[1745204251508,2.264,1632.9,1632.8,11.46373]
[1745204252006,2.264,1632.9,1632.8,16.32873]
[1745204255802,2.264,1632.9,1632.8,21.32873]
[1745204256210,2.4137,1633.2,1633.1,1.22476]
[1745204256507,4.7462,1633.2,1633.1,1.22476]
[1745204257109,7.0102,1633.2,1633.1,1.22476]
[1745204258411,7.0102,1633.2,1633.1,6.07476]
[1745204258708,2.264,1633.2,1633.1,8.49316]
[1745204258909,2.264,1633.2,1633.1,13.27276]
[1745204259104,0.00919822,1633.3,1633.2,1.22468]
[1745204259303,0.00919822,1633.3,1633.2,6.85088]
[1745204260115,2.27319822,1633.3,1633.2,6.85088]
[1745204264910,2.27319822,1633.3,1633.2,3.64308]
[1745204265116,2.27319822,1633.3,1633.2,6.85088]
[1745204265616,2.27319822,1633.3,1633.2,4.43248]
[1745204265820,4.58109822,1633.3,1633.2,4.43248]
[1745204266015,4.58109822,1633.3,1633.2,1.22468]
[1745204266215,5.80570822,1633.3,1633.1,4.85]
[1745204266518,4.6016,1633.2,1633.1,1.22476]
[1745204267013,4.6016,1633.2,1633.0,6.07478]
[1745204267318,4.6106,1633.1,1633.0,6.07478]
[1745204267818,4.6106,1633.1,1633.0,4.85]
[1745204268010,4.6106,1633.1,1633.0,1.22483]
[1745204268212,6.8746,1633.1,1633.0,1.22483]
[1745204268411,6.8746,1633.1,1632.9,6.07486]
[1745204268710,2.2953,1633.0,1632.9,6.07486]
[1745204269212,4.5593,1633.0,1632.9,6.07486]
[1745204271213,12.7671,1633.0,1632.6,1.22509]
[1745204271411,3.2078,1632.8,1632.7,1.22505]
[1745204271911,8.0286,1632.8,1632.7,1.22505]
[1745204273621,8.0286,1632.8,1632.6,1.22508]
[1745204273821,2.4971,1632.7,1632.6,1.22508]
[1745204274114,1.22513,1632.6,1632.5,0.00613216]
[1745204274309,5.5856,1632.6,1632.5,0.00613216]
[1745204274918,9.30783,1632.6,1632.5,0.00613216]
[1745204275220,16.57183,1632.6,1632.5,0.00613216]
[1745204275411,16.57183,1632.6,1632.3,8.17565967]
[1745204275412,1.22528,1632.4,1632.3,8.17565967]
[1745204275611,3.2078,1632.4,1632.3,9.40101967]
[1745204275807,2.3848,1632.5,1632.4,1.22528]
[1745204278816,2.3848,1632.5,1632.3,0.00919822]
[1745204279120,2.3692,1632.4,1632.3,1.23455822]
[1745204279621,4.905,1632.4,1632.3,1.23455822]
[1745204281022,4.905,1632.4,1632.3,0.00919822]
[1745204281810,4.905,1632.4,1632.3,1.23455822]
[1745204282422,4.905,1632.4,1632.3,0.00919822]
[1745204282923,4.905,1632.4,1631.9,8.17565967]
[1745204282924,13.1128,1632.4,1631.9,8.17565967]
[1745204283120,3.2078,1632.2,1632.1,1.22551]
[1745204283325,4.8653,1632.3,1632.2,1.22543]
[1745204285120,4.8653,1632.3,1632.0,4.851]
[1745204285329,2.3225,1632.2,1632.1,1.22545]
[1745204286033,2.3225,1632.2,1632.1,3.63025]
[1745204289127,2.3225,1632.2,1631.9,1.22564]
[1745204289128,1.22551,1632.1,1631.9,1.22564]
[1745204289330,6.05678,1632.0,1631.7,7.1949]
[1745204289517,2.3102,1631.9,1631.8,1.22573]
[1745204291425,2.3102,1631.9,1631.8,3.59373]
[1745204291625,2.3102,1631.9,1631.8,1.22573]
[1745204292128,2.521,1632.0,1631.9,1.22566]
[1745204292333,2.4544,1632.1,1632.0,1.22558]
[1745204292633,2.4544,1632.1,1632.0,3.59358]
[1745204294034,4.9818,1632.1,1632.0,3.59358]
[1745204295836,5.6607,1632.2,1632.1,1.22551]
[1745204295837,3.2078,1632.2,1632.1,1.22551]
[1745204296025,3.2078,1632.2,1632.1,8.44741]
[1745204299334,2.53689822,1632.4,1632.3,1.22536]
[1745204301237,0.00919822,1632.4,1632.3,6.06436]
[1745204301530,2.3554,1632.7,1632.5,1.22515]
[1745204302041,2.3554,1632.7,1632.3,7.3144]
[1745204302238,4.6194,1632.7,1632.3,7.3144]
[1745204302538,4.62859822,1632.7,1632.5,1.2252]
[1745204302741,2.5227,1632.6,1632.4,1.22524]
[1745204302933,5.7305,1632.6,1632.4,1.22524]
[1745204303540,5.7305,1632.6,1632.3,0.00919822]
[1745204303737,4.43308,1632.4,1632.3,0.00919822]
[1745204304439,5.4718,1632.4,1632.3,0.00919822]
[1745204304940,7.932,1632.4,1632.3,0.00919822]
[1745204305135,7.932,1632.4,1632.3,1.23455822]
[1745204305531,7.932,1632.4,1632.3,0.00919822]
[1745204305841,7.932,1632.4,1632.3,1.23455822]
[1745204306136,5.668,1632.4,1632.3,1.23455822]
[1745204307039,2.5227,1632.6,1632.5,1.22521]
[1745204307240,5.0257,1632.6,1632.5,1.22521]
[1745204307838,8.2335,1632.6,1632.5,1.22521]
[1745204308541,9.45866,1632.6,1632.3,0.00919822]
[1745204308739,3.2078,1632.4,1632.3,1.23452822]
[1745204311143,1.22521,1632.5,1632.3,0.00919822]
[1745204312045,1.22521,1632.5,1632.3,1.23454822]
[1745204312242,3.48921,1632.5,1632.3,1.23454822]
[1745204312845,6.69701,1632.5,1632.3,1.23454822]
[1745204313049,2.4113,1632.4,1632.3,1.23454822]
[1745204316452,2.4113,1632.4,1632.3,0.00919822]
[1745204316754,2.4113,1632.4,1632.3,1.23455822]
[1745204319750,5.0257,1632.6,1632.4,1.22528]
[1745204319951,2.4708,1632.5,1632.4,3.61008]
[1745204320851,2.4708,1632.5,1632.4,1.22528]
[1745204321853,2.4708,1632.5,1632.3,0.00919822]
[1745204322044,3.2078,1632.4,1632.3,0.00919822]
[1745204322444,5.5107,1632.4,1632.3,0.00919822]
[1745204323056,6.73598,1632.4,1632.3,0.00919822]
[1745204324153,8.99998,1632.4,1632.3,0.00919822]
[1745204324854,5.79218,1632.4,1632.3,0.00919822]
[1745204325151,8.99998,1632.4,1632.3,0.00919822]
[1745204325447,5.4718,1632.4,1632.3,1.23455822]
[1745204325648,10.66724948,1632.4,1632.3,1.23455822]
[1745204326250,8.40324948,1632.4,1632.3,1.23455822]
[1745204326853,8.40324948,1632.4,1632.3,3.77195822]
[1745204327954,6.08524948,1632.4,1632.3,3.77195822]
[1745204328147,6.08524948,1632.4,1632.3,6.97975822]
[1745204328548,6.08524948,1632.4,1632.3,3.77195822]
[1745204329054,7.5115,1632.6,1632.5,1.22521]
[1745204330756,7.5115,1632.6,1632.4,3.58113]
[1745204331852,2.3758,1632.5,1632.4,3.58113]
[1745204333363,2.3758,1632.5,1632.4,3.58118]
[1745204336854,2.3758,1632.5,1632.4,1.22528]
[1745204339356,2.3758,1632.5,1632.3,0.00919822]
[1745204339555,5.5836,1632.5,1632.4,1.22528]
[1745204340164,7.8476,1632.5,1632.4,1.22528]
[1745204341265,6.80882,1632.5,1632.3,0.00919822]
[1745204341564,2.4286,1632.4,1632.3,1.23455822]
[1745204342057,2.4286,1632.4,1632.3,3.57395822]
[1745204343363,13.58054948,1632.6,1632.3,2.34859822]
[1745204343561,2.4696,1632.5,1632.4,3.61098]
[1745204345166,5.6774,1632.5,1632.3,0.00919822]
[1745204345667,2.3446,1632.4,1632.3,1.23455822]
[1745204346864,3.2078,1632.5,1632.4,1.22528]
[1745204347163,5.5524,1632.5,1632.4,3.71098]
[1745204347364,2.3446,1632.5,1632.4,3.71098]
[1745204348165,11.11094948,1632.6,1632.5,1.22521]
[1745204348373,11.11094948,1632.6,1632.5,3.71091]
[1745204349164,6.08524948,1632.6,1632.5,3.71091]
[1745204350663,8.55864948,1632.6,1632.5,3.71091]
[1745204350867,8.55864948,1632.6,1632.5,2.4857]
[1745204351968,2.4734,1632.6,1632.3,3.21699822]
[1745204352163,2.4148,1632.5,1632.4,1.22528]
[1745204355773,15.3273377,1632.7,1632.6,1.22513]
[1745204355774,14.1022477,1632.7,1632.6,1.22513]
[1745204355967,16.5133477,1632.7,1632.6,1.22513]
[1745204359674,10.42809822,1632.7,1632.6,1.22513]
[1745204359976,7.22029822,1632.7,1632.6,1.22513]
[1745204372581,0.00919822,1632.7,1632.6,6.22513]
[1745204372782,0.00919822,1632.7,1632.6,13.59303]
[1745204373085,0.00919822,1632.7,1632.6,8.59303]
[1745204373283,2.27319822,1632.7,1632.6,8.59303]
[1745204374985,2.27319822,1632.7,1632.6,13.59303]
[1745204376884,2.27319822,1632.7,1632.6,8.59303]
[1745204377080,2.27319822,1632.7,1632.6,3.74053]
[1745204377387,0.00919822,1632.7,1632.6,3.74053]
[1745204378191,2.27319822,1632.7,1632.6,3.74053]
[1745204382691,2.27319822,1632.7,1632.6,8.74053]
[1745204382992,0.84580822,1632.7,1632.6,14.62453]
[1745204383192,3.2078,1633.0,1632.9,1.22491]
[1745204383394,3.20083485,1633.0,1632.9,6.02291]
[1745204384089,3.20083485,1633.0,1632.9,8.46621]
[1745204384283,5.46483485,1633.0,1632.9,8.46621]
[1745204385994,5.46483485,1633.0,1632.9,10.81521]
[1745204386788,2.264,1633.0,1632.9,10.81521]
[1745204389598,2.264,1633.0,1632.9,8.46621]
[1745204389898,7.2183,1633.0,1632.9,8.46621]
[1745204391595,7.2183,1633.0,1632.9,11.67401]
[1745204391791,7.2183,1633.0,1632.9,1.22491]
[1745204400209,10.4261,1633.0,1632.7,4.797]
[1745204400503,4.7444,1632.9,1632.8,1.22498]
[1745204401202,7.0084,1632.9,1632.8,1.22498]
[1745204401801,2.264,1632.9,1632.8,1.22498]
[1745204402406,2.5507,1633.0,1632.9,1.22491]
[1745204402606,2.5507,1633.0,1632.9,6.02191]
[1745204402805,4.8827,1633.0,1632.9,9.22971]
[1745204403008,0.00919822,1633.1,1633.0,1.22483]
[1745204403211,0.00919822,1633.1,1633.0,3.74273]
[1745204404107,2.27319822,1633.1,1633.0,3.74273]
[1745204406210,2.5394,1633.4,1633.3,1.22461]
[1745204406404,2.5394,1633.4,1633.3,6.02161]
[1745204406800,2.5394,1633.4,1633.3,8.51991]
[1745204407005,2.4214,1633.5,1633.4,1.22453]
[1745204407209,2.27319822,1633.5,1633.4,6.93063]
[1745204407406,2.27319822,1633.5,1633.4,9.28423]
[1745204408103,0.00919822,1633.5,1633.4,9.28423]
[1745204411411,0.00919822,1633.5,1633.3,10.31638]
[1745204411713,0.00919822,1633.5,1633.2,0.00919822]
[1745204411914,0.00919822,1633.5,1633.3,1.22461]
[1745204412116,4.67749822,1633.5,1633.2,1.23385822]
[1745204412316,4.8659,1633.4,1633.2,1.23385822]
[1745204412510,2.4043,1633.3,1633.2,1.23385822]
[1745204413112,4.6683,1633.3,1633.2,1.23385822]
[1745204415018,4.6683,1633.3,1633.2,3.74955822]
[1745204418816,4.6683,1633.3,1633.2,1.23385822]
[1745204419619,10.89291,1633.3,1633.2,0.00919822]
[1745204419821,10.89291,1633.3,1632.6,18.12000337]
[1745204419822,10.89295,1633.3,1632.9,1.22489]
[1745204420019,2.4469,1633.2,1632.7,15.45455967]
[1745204420219,2.3931,1633.1,1632.9,1.22486]
[1745204420421,2.4469,1633.0,1632.9,1.22486]
[1745204420721,2.4469,1633.0,1632.8,1.22493]
[1745204420921,5.6547,1633.0,1632.8,1.23412822]
[1745204421117,7.9187,1633.0,1632.8,1.23412822]
[1745204421322,2.4469,1632.9,1632.8,1.23412822]
[1745204422214,4.7109,1632.9,1632.8,1.23412822]
[1745204422918,4.7109,1632.9,1632.8,3.56962822]
[1745204423425,4.7109,1632.9,1632.8,1.23412822]
[1745204430126,5.93581,1632.9,1632.8,0.00919822]
[1745204430325,18.9027,1632.9,1632.3,11.38345967]
[1745204430524,4.43289,1632.7,1632.4,1.22525]
[1745204430723,2.3057,1632.6,1632.4,1.22522]
[1745204430925,2.4729,1632.5,1632.4,1.22522]
[1745204431130,2.3057,1632.6,1632.5,1.22521]
[1745204431332,4.7786,1632.6,1632.5,1.22521]
[1745204431725,2.4729,1632.6,1632.5,1.22521]
[1745204432033,2.4729,1632.6,1632.5,6.00921]
[1745204432331,4.7369,1632.6,1632.5,6.00921]
[1745204434121,2.4729,1632.6,1632.5,6.00921]
[1745204434331,2.27319822,1632.7,1632.6,1.22513]
[1745204434527,2.27319822,1632.7,1632.6,3.53093]